bitfinex-derivatives/quotes_BNBF0:USTF0_20250303
["timestamp","ask_amount","ask_price","bid_price","bid_amount"]
[1740986152866,0.913,602.89,602.45,0.60086827]
[1740986153058,0.913,602.89,602.46,0.60086276]
[1740986153263,0.913,602.89,602.47,0.26889052]
[1740986153563,0.913,602.89,602.48,0.33196122]
[1740986153766,0.913,602.89,602.49,0.26889052]
[1740986154065,0.913,602.89,602.5,0.3319502]
[1740986154266,0.913,602.89,602.51,0.26889052]
[1740986155367,0.913,602.89,602.52,0.33193918]
[1740986155566,0.913,602.89,602.53,0.26889052]
[1740986155767,0.913,602.89,602.54,0.33192817]
[1740986155967,0.913,602.89,602.55,0.26889052]
[1740986156471,0.913,602.89,602.56,0.6007373]
[1740986156668,0.913,602.89,602.57,0.60073179]
[1740986156864,0.913,602.89,602.58,0.26882015]
[1740986157068,0.913,602.89,602.59,0.33190062]
[1740986157269,0.913,602.89,602.6,0.26882015]
[1740986158866,0.913,602.89,602.61,0.33188961]
[1740986159070,0.913,602.89,602.62,0.26882015]
[1740986159367,0.913,602.89,602.63,0.33187859]
[1740986159767,0.913,602.89,602.64,0.26882015]
[1740986160975,0.913,602.89,602.65,0.26882874]
[1740986161172,0.913,602.89,602.63,0.33187859]
[1740986161173,0.913,602.89,602.66,0.26882874]
[1740986161374,0.913,602.89,602.64,0.26882874]
[1740986161575,0.913,602.89,602.65,0.26882874]
[1740986161777,0.913,602.89,602.64,0.26882874]
[1740986162975,1.079,602.91,602.64,0.26882874]
[1740986163178,1.079,602.91,602.63,0.33187859]
[1740986163179,1.079,602.91,602.67,1.23957908]
[1740986163372,1.079,602.91,602.68,0.26882874]
[1740986166473,1.079,602.91,602.63,0.33187859]
[1740986166474,1.079,602.91,602.69,0.26882874]
[1740986166679,1.079,602.91,602.64,0.26882874]
[1740986166876,1.079,602.91,602.65,0.26882874]
[1740986167073,1.079,602.91,602.66,0.26882874]
[1740986167276,1.079,602.91,602.67,0.26881543]
[1740986167472,1.079,602.91,602.64,0.26881543]
[1740986167681,1.079,602.91,602.63,0.33187859]
[1740986167682,1.079,602.91,602.65,0.26881543]
[1740986167884,1.079,602.91,602.64,0.26881543]
[1740986168085,1.079,602.91,602.65,0.26881543]
[1740986168281,1.079,602.91,602.66,0.26881543]
[1740986168487,1.079,602.91,602.64,0.26881543]
[1740986168685,1.079,602.91,602.65,1.50839451]
[1740986168886,1.079,602.91,602.66,0.26881543]
[1740986169087,1.079,602.91,602.67,0.33185657]
[1740986169287,1.079,602.91,602.68,0.26881543]
[1740986169586,1.079,602.91,602.69,0.33184555]
[1740986169787,1.079,602.91,602.7,0.26881543]
[1740986169987,1.079,602.91,602.71,0.26881543]
[1740986170189,1.079,602.91,602.72,0.26881543]
[1740986170389,1.079,602.91,602.73,0.26881543]
[1740986170786,1.079,602.91,602.74,0.26881543]
[1740986170987,1.079,602.91,602.7,0.26881543]
[1740986171189,1.079,602.91,602.71,0.26881543]
[1740986171490,1.079,602.91,602.73,1.23957908]
[1740986171892,1.079,602.91,602.74,0.26881543]
[1740986172489,1.095,602.96,602.74,0.26881543]
[1740986174689,1.095,602.96,602.87,1.23957908]
[1740986174892,1.095,602.96,602.88,0.26881543]
[1740986176193,1.095,602.96,602.89,0.33173547]
[1740986176388,1.095,602.96,602.9,0.26881543]
[1740986176894,1.095,602.96,602.91,0.33172446]
[1740986177088,1.095,602.96,602.92,0.26881543]
[1740986177691,1.095,602.96,602.93,0.33171346]
[1740986177993,1.095,602.96,602.94,0.26881543]
[1740986178194,1.095,602.96,602.95,0.26881543]
[1740986178793,0.75564033,602.96,602.95,0.26881543]
[1740986180193,0.75564033,602.96,602.93,0.33171346]
[1740986180389,0.75564033,602.96,602.94,0.26836898]
[1740986180695,0.75564033,602.96,602.95,0.26836898]
[1740986181795,0.75564033,602.96,602.93,0.33171346]
[1740986182095,0.75564033,602.96,602.94,0.26839269]
[1740986182294,0.75564033,602.96,602.95,0.60009515]
[1740986188293,0.75564033,602.96,602.95,0.60029653]
[1740986192301,0.75564033,602.96,602.95,0.60042531]
[1740986194802,0.75564033,602.96,602.95,0.60043036]
[1740986195703,1.209,603.4,602.95,0.60043036]
[1740986196004,1.209,603.4,602.96,0.2687279]
[1740986196799,0.986,603.47,602.96,0.2687279]
[1740986197604,0.986,603.47,602.95,0.33170246]
[1740986199108,0.986,603.47,602.32,1.22021188]
[1740986199304,0.986,603.47,602.34,0.33203838]
[1740986199509,0.986,603.47,602.35,0.26879244]
[1740986199710,0.986,603.47,602.37,0.33202184]
[1740986199905,1.196,603.46,602.38,0.26879244]
[1740986200106,1.196,603.46,602.39,0.26879244]
[1740986200309,1.196,603.46,602.41,0.3319998]
[1740986200510,1.196,603.46,602.42,0.26879244]
[1740986200710,1.196,603.46,602.43,0.26879244]
[1740986200911,1.196,603.46,602.42,0.26879244]
[1740986201211,1.196,603.46,602.44,0.33198326]
[1740986201510,1.196,603.46,602.45,0.26879244]
[1740986201711,1.196,603.46,602.47,0.33196673]
[1740986202010,1.196,603.46,602.48,0.26879244]
[1740986202209,1.196,603.46,602.5,0.3319502]
[1740986202412,1.196,603.46,602.51,0.26879244]
[1740986202604,1.196,603.46,602.52,0.26879244]
[1740986202803,1.196,603.46,602.5,0.3319502]
[1740986203010,1.196,603.46,602.51,0.26871885]
[1740986203210,1.196,603.46,602.53,0.33193367]
[1740986203410,1.196,603.46,602.54,0.26871885]
[1740986203602,1.196,603.46,602.56,0.33191715]
[1740986203806,1.196,603.46,602.57,0.26871885]
[1740986204008,1.196,603.46,602.58,0.26871885]
[1740986204208,1.196,603.46,602.59,0.60061947]
[1740986204511,1.196,603.46,602.6,0.60061397]
[1740986204811,1.196,603.46,602.61,0.60060846]
[1740986205111,1.196,603.46,602.62,0.60060295]
[1740986205310,1.196,603.46,602.63,0.33187859]
[1740986205506,1.196,603.46,602.64,0.26874499]
[1740986205706,1.196,603.46,602.65,0.60061257]
[1740986205906,1.196,603.46,602.66,0.60060706]
[1740986206107,1.196,603.46,602.67,0.60060156]
[1740986206313,1.196,603.46,602.68,0.60059615]
[1740986206605,1.196,603.46,602.69,0.26874509]
[1740986206810,1.196,603.46,602.7,0.33184005]
[1740986207007,1.196,603.46,602.71,0.26874509]
[1740986207209,1.196,603.46,602.72,0.33182904]
[1740986207508,1.196,603.46,602.73,0.26874509]
[1740986207706,1.196,603.46,602.74,0.33181803]
[1740986207908,1.196,603.46,602.75,0.26874217]
[1740986209413,1.402,603.45,602.75,0.26874217]
[1740986211017,1.402,603.45,602.74,0.33181803]
[1740986211217,1.402,603.45,602.75,0.26882559]
[1740986212315,1.402,603.45,602.76,0.268899]
[1740986212519,1.402,603.45,602.35,0.268899]
[1740986212719,1.402,603.45,602.34,1.22021188]
[1740986212919,1.402,603.45,602.35,0.26893862]
[1740986213115,2.166,603.45,602.35,0.26893862]
[1740986213916,2.166,603.45,602.36,0.26893862]
[1740986214118,2.166,603.45,602.21,0.26893862]
[1740986214318,2.166,603.45,602.22,0.60104316]
[1740986214514,2.166,603.45,602.23,0.26893862]
[1740986214721,2.166,603.45,602.24,0.26893862]
[1740986214919,2.166,603.45,602.25,0.26893862]
[1740986215114,2.166,603.45,602.26,0.26893862]
[1740986215318,2.166,603.45,602.27,0.26893862]
[1740986215520,2.166,603.45,602.28,0.26893862]
[1740986215719,2.166,603.45,602.22,0.33210454]
[1740986215720,2.166,603.45,602.29,0.26893862]
[1740986215915,2.166,603.45,602.22,0.33210454]
[1740986216120,2.166,603.45,602.23,0.26892068]
[1740986216419,2.166,603.45,602.22,0.33210454]
[1740986216420,2.166,603.45,602.24,0.26892068]
[1740986216614,2.166,603.45,602.25,0.26892068]
[1740986216820,2.166,603.45,602.26,0.26892068]
[1740986217020,2.166,603.45,602.27,0.26892068]
[1740986217220,2.166,603.45,602.23,0.26892068]
[1740986217521,2.166,603.45,602.29,0.33206594]
[1740986217722,2.166,603.45,602.3,0.26892068]
[1740986217917,2.166,603.45,602.32,0.3320494]
[1740986218120,2.166,603.45,602.33,0.26892068]
[1740986218321,2.166,603.45,602.35,0.33203287]
[1740986218516,2.166,603.45,602.36,0.26892068]
[1740986218721,2.166,603.45,602.38,0.33201633]
[1740986218923,2.166,603.45,602.39,0.26892068]
[1740986219124,3.148,603.45,602.4,0.60092599]
[1740986219315,3.148,603.45,602.41,0.60092048]
[1740986219520,3.148,603.45,602.42,0.26892068]
[1740986219917,3.148,603.45,602.43,0.33198877]
[1740986220126,3.148,603.45,602.44,0.26892068]
[1740986220523,3.148,603.45,602.45,0.33197775]
[1740986220724,3.148,603.45,602.46,1.48908883]
[1740986220925,3.148,603.45,602.47,0.26887695]
[1740986221821,3.148,603.45,602.46,1.22021188]
[1740986222021,3.148,603.45,602.47,0.26884473]
[1740986222323,3.148,603.45,602.48,0.26884473]
[1740986222519,3.148,603.45,602.49,0.26884473]
[1740986222922,3.148,603.45,602.5,0.26884473]
[1740986223116,3.148,603.45,602.51,0.26884473]
[1740986223317,3.148,603.45,602.46,0.26884473]
[1740986223521,3.148,603.45,602.45,0.33197775]
[1740986223522,3.148,603.45,602.47,0.26884473]
[1740986223720,3.148,603.45,602.46,0.26884473]
[1740986223918,3.148,603.45,602.47,0.26884473]
[1740986224125,3.148,603.45,602.48,0.26884473]
[1740986224324,3.148,603.45,602.49,0.26884473]
[1740986224626,3.148,603.45,602.5,0.26884473]
[1740986224828,3.148,603.45,602.51,0.26884473]
[1740986225020,3.148,603.45,602.52,0.26884473]
[1740986225326,3.148,603.45,602.53,0.26884473]
[1740986225525,3.148,603.45,602.54,0.26884473]
[1740986225825,3.148,603.45,602.55,0.26884473]
[1740986226025,3.148,603.45,602.56,0.26884473]
[1740986226221,3.148,603.45,602.57,0.26884473]
[1740986226620,3.148,603.45,602.58,0.26884473]
[1740986226824,3.148,603.45,602.59,0.26884473]
[1740986227024,3.148,603.45,602.47,1.22021188]
[1740986227025,3.148,603.45,602.63,1.22021188]
[1740986227225,3.148,603.45,602.64,0.26884473]
[1740986227526,3.148,603.45,602.65,0.26884473]
[1740986227728,3.148,603.45,602.66,0.26884473]
[1740986227925,3.148,603.45,602.67,0.26884473]
[1740986228225,3.148,603.45,602.63,1.22021188]
[1740986228226,3.148,603.45,602.68,0.26884473]
[1740986228428,3.148,603.45,602.69,0.26884473]
[1740986228626,3.148,603.45,602.7,0.26884473]
[1740986228822,3.148,603.45,602.71,0.26884473]
[1740986229025,3.148,603.45,602.72,0.26884473]
[1740986229223,3.148,603.45,602.73,0.26884473]
[1740986229420,3.148,603.45,603.09,1.22021188]
[1740986229624,3.148,603.45,603.1,0.26884473]
[1740986231629,3.148,603.45,603.11,0.26869654]
[1740986231927,3.148,603.45,603.12,0.26869654]
[1740986232128,3.148,603.45,603.13,0.26869654]
[1740986232329,3.148,603.45,603.14,0.26869654]
[1740986232523,3.148,603.45,603.15,0.26869654]
[1740986232726,3.148,603.45,602.86,1.22021188]
[1740986232927,3.148,603.45,602.87,0.2687456]
[1740986234624,3.148,603.45,602.86,1.22021188]
[1740986234829,3.148,603.45,602.87,0.26878949]
[1740986235026,3.148,603.45,602.88,0.26878949]
[1740986235225,3.148,603.45,602.65,0.26878949]
[1740986235429,3.148,603.45,602.66,0.26878949]
[1740986235629,3.148,603.45,602.65,0.26878949]
[1740986235825,3.148,603.45,602.66,0.26878949]
[1740986236030,3.148,603.45,602.65,0.26878949]
[1740986236225,3.148,603.45,602.64,1.22021188]
[1740986236427,3.148,603.45,602.65,0.26886149]
[1740986237630,3.148,603.45,602.61,0.26886149]
[1740986237829,3.148,603.45,602.6,1.22021188]
[1740986238031,3.148,603.45,602.61,0.26887795]
[1740986239630,3.148,603.45,602.51,0.26887795]
[1740986239830,3.148,603.45,602.52,0.26887795]
[1740986240028,3.148,603.45,602.53,0.26887795]
[1740986240228,3.148,603.45,602.51,0.26887795]
[1740986240431,3.148,603.45,602.52,0.26887795]
[1740986240632,3.148,603.45,602.51,0.26887795]
[1740986240831,3.148,603.45,602.52,0.26887795]
[1740986241027,3.148,603.45,602.5,1.22021188]
[1740986241334,3.148,603.45,602.51,0.26889152]
[1740986242127,3.148,603.45,602.52,0.26889152]
[1740986242331,3.148,603.45,602.53,0.26889152]
[1740986242732,3.148,603.45,602.54,0.26889152]
[1740986243036,3.148,603.45,602.55,0.26889152]
[1740986243228,3.148,603.45,602.46,0.26889152]
[1740986243432,3.148,603.45,602.47,0.26889152]
[1740986243632,3.148,603.45,602.46,0.26889152]
[1740986243931,3.148,603.45,602.47,0.26889152]
[1740986244133,3.148,603.45,602.42,1.22021188]
[1740986244333,3.148,603.45,602.46,0.26889793]
[1740986247934,3.148,603.45,602.47,0.33196673]
[1740986248134,3.148,603.45,602.48,0.26889793]
[1740986248438,3.148,603.45,602.49,0.33195571]
[1740986248736,3.148,603.45,602.5,0.26889793]
[1740986253940,3.148,603.45,602.51,0.26894365]
[1740986254134,3.148,603.45,602.52,0.26894365]
[1740986254339,3.148,603.45,602.49,0.33195571]
[1740986254340,3.148,603.45,602.5,0.26894365]
[1740986254544,3.148,603.45,602.51,0.26894365]
[1740986254731,3.148,603.45,602.52,0.26894365]
[1740986254936,3.148,603.45,602.53,0.26894365]
[1740986255136,3.148,603.45,602.49,0.33195571]
[1740986255137,3.148,603.45,602.54,0.26894365]
[1740986255337,3.148,603.45,602.5,0.26894365]
[1740986255639,3.148,603.45,602.51,0.26894365]
[1740986255835,0.3314386,603.43,602.41,1.22021188]
[1740986257242,0.3314386,603.43,602.18,1.22021188]
[1740986257451,0.3314386,603.43,602.19,0.2691474]
[1740986257851,0.3314386,603.43,602.2,0.26916917]
[1740986258053,0.3314386,603.43,602.18,1.22021188]
[1740986258253,0.3314386,603.43,602.19,0.2691615]
[1740986258553,0.3314386,603.43,602.18,1.22021188]
[1740986258754,2.03743313,603.42,602.19,0.26919178]
[1740986259055,0.33145508,603.4,602.19,0.26919178]
[1740986259449,0.30489758,603.39,602.19,0.26919178]
[1740986259653,0.33147156,603.37,602.18,1.22021188]
[1740986259853,0.30489758,603.36,602.18,1.22021188]
[1740986260649,0.30489758,603.36,601.71,1.22021188]
[1740986260853,0.30489758,603.36,601.72,0.26929443]
[1740986261057,4.27293523,603.35,601.72,0.26929443]
[1740986261256,4.57783281,603.34,601.72,0.26929443]
[1740986261454,4.57783281,603.33,601.72,0.26929443]
[1740986261655,4.57783281,603.32,601.72,0.26929443]
[1740986261855,4.27293523,603.31,601.71,1.22021188]
[1740986262056,4.57795516,603.3,601.72,0.26933263]
[1740986262256,4.57795516,603.29,601.72,0.26933263]
[1740986262452,4.57795516,603.28,601.72,0.26933263]
[1740986262653,4.57795516,603.27,601.72,0.26933263]
[1740986262950,2.85030511,603.33,601.72,0.26933263]
[1740986262951,4.57795516,603.26,601.72,0.26933263]
[1740986263154,4.57795516,603.25,601.73,0.26933263]
[1740986263350,0.33154849,603.23,601.73,0.26933263]
[1740986263549,1.64204644,603.22,601.23,0.26933263]
[1740986263754,2.85030511,603.33,601.22,1.22021188]
[1740986263755,0.33156498,603.2,601.25,0.33264033]
[1740986263954,1.94708106,603.19,601.26,0.26934746]
[1740986264249,1.94708106,603.18,601.27,0.26934746]
[1740986264456,1.94708106,603.17,601.28,0.26934746]
[1740986264756,1.94708106,603.16,601.29,0.26934746]
[1740986264956,4.57796985,603.15,601.3,0.26934746]
[1740986265154,0.33156498,603.2,601.31,0.26934746]
[1740986265155,4.57796985,603.14,601.31,0.26934746]
[1740986265350,4.57796985,603.13,601.26,0.26934746]
[1740986265654,4.57796985,603.12,601.27,0.26934746]
[1740986265853,4.57796985,603.11,601.28,0.26934746]
[1740986266053,4.57796985,603.1,601.29,0.26934746]
[1740986266249,4.57796985,603.09,601.3,0.60196013]
[1740986266456,0.33163646,603.07,601.31,0.6019546]
[1740986266654,1.94708106,603.06,601.32,0.26934746]
[1740986266854,0.33165295,603.04,601.32,0.60194906]
[1740986267051,1.94708106,603.03,601.33,0.26934746]
[1740986267251,1.94708106,603.02,601.33,0.26934746]
[1740986267453,0.30503462,603.01,601.33,0.26934746]
[1740986267651,0.30503462,603.0,601.33,0.26934746]
[1740986267951,0.33165295,603.04,601.33,0.26934746]
[1740986267952,0.30503462,602.99,601.33,0.26934746]
[1740986268157,0.30503462,603.03,601.33,0.26934746]
[1740986268357,0.30503462,603.02,601.33,0.26934746]
[1740986268553,0.30503462,603.03,601.34,0.26934746]
[1740986268757,0.801,603.01,601.35,0.26934746]
[1740986269059,0.801,603.01,601.36,0.26934746]
[1740986269255,0.801,603.01,601.37,0.26934746]
[1740986269562,0.801,603.01,601.32,0.3326016]
[1740986269563,0.801,603.01,601.38,0.26934746]
[1740986269752,0.801,603.01,601.39,0.26934746]
[1740986269956,0.801,603.01,601.33,0.26934746]
[1740986270152,0.801,603.01,601.34,0.26934746]
[1740986270356,0.801,603.01,601.32,0.3326016]
[1740986270357,0.801,603.01,601.35,0.26934746]
[1740986270552,0.801,603.01,601.36,0.26934746]
[1740986270757,0.801,603.01,601.32,0.3326016]
[1740986270758,0.801,603.01,601.37,0.26934746]
[1740986270953,0.33167495,603.0,601.39,0.33256289]
[1740986271155,0.33167495,603.0,601.4,0.26934746]
[1740986271351,0.33167495,603.0,601.42,0.3325463]
[1740986271559,0.33167495,603.0,601.43,0.26927903]
[1740986271758,0.33167495,603.0,601.45,0.33252971]
[1740986271960,0.33167495,603.0,601.46,0.26927903]
[1740986272352,0.33167495,603.0,601.45,0.33252971]
[1740986272557,0.33167495,603.0,601.46,0.26934851]
[1740986274257,0.33167495,603.0,601.47,0.33251866]
[1740986274457,0.33167495,603.0,601.48,0.26934851]
[1740986274658,0.33167495,603.0,601.49,0.26934851]
[1740986274855,0.33167495,603.0,601.5,0.26921041]
[1740986275059,0.33167495,603.0,601.51,0.26921041]
[1740986275255,0.33167495,603.0,601.52,0.26921041]
[1740986275464,0.33167495,603.0,601.53,0.26921041]
[1740986275664,0.33167495,603.0,601.54,0.26921041]
[1740986275859,0.33167495,603.0,601.55,0.26921041]
[1740986276161,0.33167495,603.0,601.56,0.26921041]
[1740986276463,0.33167495,603.0,601.47,0.33251866]
[1740986276662,0.33167495,603.0,601.48,0.26917114]
[1740986277759,0.33167495,603.0,601.5,0.33250207]
[1740986277955,0.33167495,603.0,601.51,0.26917114]
[1740986278362,0.33167495,603.0,601.53,0.33248549]
[1740986278561,0.33167495,603.0,601.54,0.26917114]
[1740986279365,0.33167495,603.0,601.56,0.33246891]
[1740986279864,0.33167495,603.0,601.57,0.2691923]
[1740986280067,0.33167495,603.0,601.58,0.2691923]
[1740986280261,0.33167495,603.0,601.59,0.2691923]
[1740986280460,0.33167495,603.0,601.6,0.2691923]
[1740986280658,0.33167495,603.0,601.61,0.2691923]
[1740986280964,0.33167495,603.0,601.63,0.33243023]
[1740986281158,0.33167495,603.0,601.64,0.2691923]
[1740986281362,0.33167495,603.0,601.65,0.2691923]
[1740986281564,0.33167495,603.0,601.66,0.2691923]
[1740986281764,0.33167495,603.0,601.68,0.3324026]
[1740986282065,0.33167495,603.0,601.69,0.2691923]
[1740986282262,0.33167495,603.0,601.7,0.2691923]
[1740986282458,0.33167495,603.0,601.71,0.2691923]
[1740986282665,0.33167495,603.0,601.69,0.2691923]
[1740986282964,0.33167495,603.0,601.7,0.2691923]
[1740986283162,0.33167495,603.0,601.68,0.3324026]
[1740986283163,0.33167495,603.0,601.69,0.2691923]
[1740986283364,0.33167495,603.0,601.7,0.2691923]
[1740986283572,0.33167495,603.0,601.68,0.3324026]
[1740986283573,0.33167495,603.0,601.71,0.60157833]
[1740986283765,0.33167495,603.0,601.72,0.6015728]
[1740986283967,0.33167495,603.0,601.73,0.26922644]
[1740986284165,0.33167495,603.0,601.74,0.33236946]
[1740986284365,0.33167495,603.0,601.75,0.26922644]
[1740986284561,0.33167495,603.0,601.76,0.33235841]
[1740986284765,0.33167495,603.0,601.77,0.26922644]
[1740986285564,0.963,602.99,601.77,0.26922644]
[1740986288572,1.70968595,602.98,601.77,0.26922644]
[1740986288767,3.44317813,602.98,601.77,0.26922644]
[1740986289371,2.60475435,602.97,601.76,0.33235841]
[1740986289867,2.60475435,602.97,601.77,0.26937141]
[1740986289868,1.098,602.96,601.77,0.26937141]
[1740986290273,1.098,602.96,601.76,0.33235841]
[1740986290674,0.33170246,602.95,601.76,0.33235841]
[1740986294573,0.33170246,602.95,601.77,0.2693474]
[1740986295073,0.33170246,602.95,601.76,0.33235841]
[1740986296077,0.33170246,602.95,601.77,0.26933845]
[1740986296874,0.33170246,602.95,601.78,0.26927511]
[1740986297076,0.33170246,602.95,601.77,0.26927511]
[1740986297278,0.33170246,602.95,601.78,0.26927511]
[1740986297472,0.33170246,602.95,601.79,0.26927511]
[1740986297669,0.33170246,602.95,601.76,0.33235841]
[1740986297670,0.33170246,602.95,601.8,0.26927511]
[1740986297979,0.33170246,602.95,601.81,0.26927511]
[1740986298171,0.33170246,602.95,601.82,0.26927511]
[1740986298371,0.33170246,602.95,601.76,0.33235841]
[1740986298372,0.33170246,602.95,601.83,0.26927511]
[1740986298677,0.33170246,602.95,601.76,0.33235841]
[1740986298678,0.33170246,602.95,601.98,1.22021188]
[1740986298972,0.33170246,602.95,601.99,0.26917954]
[1740986301280,0.33170246,602.95,602.0,0.26917954]
[1740986301480,0.33170246,602.95,601.85,1.22021188]
[1740986301481,0.33170246,602.95,601.86,0.26917954]
[1740986301680,0.33170246,602.95,601.87,0.26917954]
[1740986301882,0.33170246,602.95,601.86,0.26917954]
[1740986302080,1.44570246,602.95,601.87,0.26917954]
[1740986302281,1.44570246,602.95,601.86,0.26917954]
[1740986302780,1.44570246,602.95,601.94,1.22021188]
[1740986302981,1.44570246,602.95,601.95,0.26917954]
[1740986303380,1.44570246,602.95,601.94,1.22021188]
[1740986303581,1.44570246,602.95,601.95,0.26919578]
[1740986304583,1.44570246,602.95,601.96,1.22021188]
[1740986304778,1.44570246,602.95,601.97,0.26919578]
[1740986304985,1.44570246,602.95,601.96,1.22021188]
[1740986305184,1.44570246,602.95,601.97,0.26928695]
[1740986306485,1.44570246,602.95,601.96,1.22021188]
[1740986306686,1.44570246,602.95,601.86,1.22021188]
[1740986306887,1.44570246,602.95,601.87,0.26915009]
[1740986307089,1.44570246,602.95,601.88,0.26915009]
[1740986307289,1.44570246,602.95,601.89,0.26915009]
[1740986307483,1.44570246,602.95,601.9,0.26915009]
[1740986307685,1.44570246,602.95,601.91,0.60142567]
[1740986307883,1.44570246,602.95,601.92,0.60142015]
[1740986308082,1.44570246,602.95,601.93,0.26915009]
[1740986309089,1.44570246,602.95,602.19,1.22021188]
[1740986309287,1.114,602.95,602.2,0.26915009]
[1740986309884,1.114,602.95,602.19,1.22021188]
[1740986310192,1.114,602.95,602.2,0.26906529]
[1740986310789,1.114,602.95,602.19,1.22021188]
[1740986311894,1.114,602.95,602.2,0.2690993]
[1740986312087,1.114,602.95,601.93,0.2690993]
[1740986312290,1.114,602.95,601.94,0.2690993]
[1740986312590,1.114,602.95,601.95,0.2690993]
[1740986312786,1.114,602.95,601.96,0.2690993]
[1740986312991,1.114,602.95,601.97,0.2690993]
[1740986313189,1.114,602.95,601.92,0.33227006]
[1740986313190,1.114,602.95,601.98,0.2690993]
[1740986313394,1.114,602.95,601.99,0.2690993]
[1740986313698,1.114,602.95,601.92,0.33227006]
[1740986313699,1.114,602.95,602.0,0.2690993]
[1740986313896,1.114,602.95,601.93,0.2690993]
[1740986314090,1.114,602.95,601.94,0.2690993]
[1740986314290,1.114,602.95,601.92,0.33227006]
[1740986314291,1.114,602.95,601.95,0.2690993]
[1740986314493,1.114,602.95,601.96,0.2690993]
[1740986314691,1.114,602.95,601.92,0.33227006]
[1740986314692,1.114,602.95,602.0,1.22021188]
[1740986314894,1.114,602.95,602.01,0.2690993]
[1740986315490,0.33170796,602.94,602.01,0.2690993]
[1740986316596,1.12770796,602.94,602.01,0.2690993]
[1740986317596,1.12770796,602.94,601.93,0.2690993]
[1740986317900,2.18670796,602.94,601.94,0.2690993]
[1740986318197,2.18670796,602.94,601.95,0.2690993]
[1740986318398,2.18670796,602.94,601.93,0.2690993]
[1740986318698,2.18670796,602.94,601.94,0.2690993]
[1740986318892,2.18670796,602.94,601.93,0.2690993]
[1740986319091,2.18670796,602.94,601.94,0.2690993]
[1740986319296,2.18670796,602.94,601.95,0.2690993]
[1740986319499,2.18670796,602.94,601.93,0.2690993]
[1740986319793,2.18670796,602.94,601.94,0.2690993]
[1740986319998,2.18670796,602.94,601.95,0.2690993]
[1740986320198,2.18670796,602.94,601.93,0.2690993]
[1740986321799,3.91999868,602.94,601.93,0.2690993]
[1740986323299,2.18670796,602.94,601.93,0.2690993]
[1740986324602,2.18670796,602.94,601.94,0.2690993]
[1740986324802,2.18670796,602.94,601.95,0.2690993]
[1740986325098,2.18670796,602.94,601.96,0.2690993]
[1740986325302,2.18670796,602.94,601.92,0.33227006]
[1740986325303,2.18670796,602.94,601.93,0.2690993]
[1740986325502,2.18670796,602.94,601.94,0.2690993]
[1740986325703,2.18670796,602.94,602.03,1.22021188]
[1740986325903,2.18670796,602.94,602.04,0.2690993]
[1740986326103,2.18670796,602.94,602.05,0.26918161]
[1740986326300,2.18670796,602.94,602.04,0.26918161]
[1740986326497,2.18670796,602.94,602.05,0.26918161]
[1740986326702,2.18670796,602.94,602.04,0.26918161]
[1740986327000,2.18670796,602.94,602.03,1.22021188]
[1740986327001,2.18670796,602.94,602.05,0.26918161]
[1740986327401,2.18670796,602.94,602.06,0.26918161]
[1740986327601,2.18670796,602.94,602.04,0.26918161]
[1740986327802,2.18670796,602.94,602.05,0.26918161]
[1740986328104,1.855,602.94,602.12,1.22021188]
[1740986328303,1.855,602.94,602.13,0.26906708]
[1740986329406,1.855,602.94,602.14,0.26908404]
[1740986329605,1.855,602.94,602.13,0.26908404]
[1740986329796,1.855,602.94,602.19,1.22021188]
[1740986329998,1.855,602.94,602.2,0.26908404]
[1740986330901,1.855,602.94,602.19,1.22021188]
[1740986331205,1.855,602.94,602.2,0.26907987]
[1740986332505,1.855,602.94,602.19,1.22021188]
[1740986332702,1.855,602.94,602.22,1.22021188]
[1740986332902,1.855,602.94,602.23,0.2691188]
[1740986335103,1.855,602.94,602.24,1.22021188]
[1740986335303,1.855,602.94,602.25,0.2691188]
[1740986338309,1.855,602.94,602.21,0.2691188]
[1740986340513,1.855,602.94,602.26,1.22021188]
[1740986340716,1.855,602.94,602.27,0.2691188]
[1740986341112,1.855,602.94,602.28,0.2691188]
[1740986341317,1.855,602.94,602.27,0.2691188]
[1740986341517,1.855,602.94,602.28,0.2691188]
[1740986341719,1.855,602.94,602.29,0.2691188]